lending/lending_fUSD_20240810
["ID","MTS","AMOUNT","RATE_DAILY","PERIOD"]
[334574746,1723254633715,-718.3116,0.000109,2]
[334574747,1723254633724,-4746.2377,0.000109,2]
[334574748,1723254633735,-4946.049,0.000109,2]
[334574749,1723254633746,-450.71719873,0.000109,2]
[334574750,1723254633757,-2500.0,0.000109,2]
[334574751,1723254633768,-155.3497535,0.000109,2]
[334574752,1723254633785,-250.0,0.00010959,2]
[334574753,1723254633794,-563.73,0.00010959,2]
[334574754,1723254633804,-499.99,0.00010997,2]
[334574756,1723254633815,-183.75984856,0.00010997,2]
[334574758,1723254633825,-169.04152979,0.00010998,2]
[334574760,1723254633835,-835.1346489,0.00010998,2]
[334574762,1723254633846,-260.827627,0.00010998,2]
[334574764,1723254633856,-5864.5595314,0.00010998,2]
[334574766,1723254633865,-1783.1068983,0.00010998,2]
[334574768,1723254633875,-751.49965305,0.00010999,3]
[334574770,1723254633885,-45135.00451092,0.00011,2]
[334574772,1723254633896,-138328.79479862,0.00011,2]
[334574773,1723254633909,-425.30016265,0.00011,2]
[334574774,1723254633922,-3955.96712328,0.00011,2]
[334574775,1723254633934,-555.64387028,0.00011,2]
[334574776,1723254633945,-1879.8522855,0.00011,2]
[334574777,1723254633957,-1517.42729465,0.00011,2]
[334574779,1723254633969,-268.07010932,0.00011,2]
[334574781,1723254633981,-1378.29577402,0.00011,2]
[334574782,1723254633993,-277.50880542,0.00011,2]
[334574783,1723254634005,-1602.76914189,0.00011,2]
[334574784,1723254634019,-16824.05464997,0.00011,2]
[334574785,1723254634030,-421.55839924,0.00011,2]
[334574786,1723254634042,-1230.78807392,0.00011,2]
[334574787,1723254638078,-2200.03350926,0.00011,2]
[334574789,1723254638089,-3029.14527678,0.00011,2]
[334574790,1723254638101,-2510.72,0.00011,2]
[334574791,1723254638112,-11775.33259882,0.00011,2]
[334574792,1723254638123,-1695.21750308,0.00011,2]
[334574793,1723254638292,-423.10202108,0.00011,2]
[334574794,1723254638303,-676.01732375,0.00011,2]
[334574795,1723254638314,-582.02499891,0.00011,2]
[334574796,1723254638325,-11456.72412784,0.00011,2]
[334574797,1723254638336,-351.92,0.00011,2]
[334574798,1723254638347,-561.82928208,0.00011,2]
[334574799,1723254638358,-744.74833634,0.00011,2]
[334574800,1723254638559,-34677.686,0.00011,2]
[334574804,1723254639903,-83111.61462018,0.00011,2]
[334574805,1723254640161,-4832.22556236,0.00011,2]
[334574806,1723254640172,-9920.5,0.00011,2]
[334574807,1723254640183,-256.89893274,0.00011,2]
[334574808,1723254640194,-4355.31238879,0.00011,2]
[334574809,1723254640204,-3048.32772882,0.00011,2]
[334574810,1723254640215,-865.43927189,0.00011,2]
[334574811,1723254640226,-670.7,0.00011,2]
[334574812,1723254640238,-91799.23822227,0.00011,2]
[334574813,1723254640248,-352.38901962,0.00011,2]
[334574814,1723254640259,-1677.4,0.00011,2]
[334574815,1723254640270,-3755.125,0.00011,2]
[334574816,1723254640281,-296.33106017,0.00011,2]
[334574817,1723254640292,-160.21854616,0.00011,2]
[334574818,1723254640301,-3850.63453784,0.00011,2]
[334574819,1723254640312,-533.1,0.00011,2]
[334574870,1723254641026,-2116.81533427,0.00011,2]
[334574871,1723254641041,-3823.85578159,0.00011,2]
[334574872,1723254641438,-3200.6762738,0.00011,2]
[334574873,1723254641450,-179240.95075078,0.00011,2]
[334574874,1723254641465,-579.67203898,0.00011,2]
[334574875,1723254641476,-475.21517826,0.00011,2]
[334574876,1723254641501,-62251.70045047,0.00011,2]
[334574877,1723254641514,-25549.94544281,0.00011,2]
[334574878,1723254641527,-1809.41,0.00011,2]
[334574879,1723254641538,-2352.05509603,0.00011,2]
[334574880,1723254641549,-2935.67401184,0.00011,2]
[334574881,1723254641560,-312.3160075,0.00011,2]
[334574882,1723254641571,-886.96900073,0.00011,2]
[334574883,1723254641582,-1610.53421101,0.00011,2]
[334574884,1723254641593,-349.89567925,0.00011,2]
[334574885,1723254641603,-819.68910007,0.00011,2]
[334574886,1723254641614,-492.0,0.00011,2]
[334574887,1723254641626,-3255.0,0.00011,2]
[334574907,1723254643272,-1310.89655929,0.00011,2]
[334574908,1723254643287,-17372.54439704,0.00011,2]
[334574909,1723254643298,-331.59294567,0.00011,2]
[334574910,1723254643321,-2609.74574209,0.00011,2]
[334574911,1723254643335,-2833.13889606,0.00011,2]
[334574912,1723254643348,-432.0,0.00011,2]
[334574914,1723254644433,-3692.33048061,0.00011,2]
[334574915,1723254644444,-512.60026479,0.00011,2]
[334574916,1723254644456,-297.95376087,0.00011,2]
[334574917,1723254644467,-293.30521316,0.00011,2]
[334574918,1723254644478,-621.13958902,0.00011,2]
[334574919,1723254644495,-5557.37127244,0.00011,2]
[334574920,1723254644508,-735.915,0.00011,2]
[334574930,1723254646496,-303.935,0.00011,2]
[334574937,1723254732699,266.25,9.05e-05,2]
[334574943,1723254810772,150.0,0.00024062,120]
[334574948,1723254990870,150.0,0.00024787,120]
[334574949,1723255050754,150.0,0.00026194,120]
[334574951,1723255111286,150.0,0.0002611,120]
[334574952,1723255171293,150.0,0.00026641,120]
[334574953,1723255204468,252.93,8.596e-05,2]
[334574954,1723255225720,209.6875557,8.596e-05,2]
[334574955,1723255260963,12789.2799532,8.596e-05,2]
[334574956,1723255291306,150.0,0.0002656,120]
[334574962,1723255710828,150.0,0.00026825,120]
[334574966,1723255782433,240.28,8.679e-05,2]
[334574974,1723255833545,-550.0,0.0001,2]
[334574976,1723255833555,-215.97,0.00010516,2]
[334574979,1723255833565,-156.81,0.00010529,2]
[334574982,1723255833576,-179.91,0.00010597,2]
[334574986,1723255833586,-1376.41688298,0.00010746,2]
[334574990,1723255833598,-2026.33361863,0.00010746,2]
[334574994,1723255833607,-1000.0,0.00010746,2]
[334574998,1723255833617,-150.0,0.00010899,2]
[334575002,1723255833627,-300.0,0.00010899,2]
[334575006,1723255833636,-300.0,0.00010899,2]
[334575010,1723255833645,-1310.4205,0.000109,2]
[334575013,1723255833654,-1588.0031,0.000109,2]
[334575016,1723255833664,-9848.0049,0.000109,2]
[334575019,1723255833674,-237.9162,0.000109,2]
[334575022,1723255833683,-818.326,0.000109,2]
[334575025,1723255833693,-874.5562,0.000109,2]
[334575028,1723255833702,-9699.8555,0.000109,2]
[334575031,1723255833711,-15023.6864,0.000109,2]
[334575034,1723255833723,-825.9845,0.000109,2]
[334575036,1723255833734,-1000.0,0.000109,2]
[334575039,1723255833743,-405.64547892,0.000109,2]
[334575042,1723255833753,-1056.2267,0.000109,2]
[334575044,1723255833763,-240.28,0.00010943,2]
[334575047,1723255833772,-6299.3261987,0.00010998,2]
[334575049,1723255833782,-1948.2095589,0.00010998,2]
[334575051,1723255833792,-893.400691,0.00010998,2]
[334575053,1723255833803,-1215.60694881,0.00010999,3]
[334575055,1723255833814,-1123.42877866,0.00010999,3]
[334575057,1723255833824,-22567.50225546,0.00011,2]
[334575059,1723255833833,-124095.98829684,0.00011,2]
[334575060,1723255833845,-5923.23978873,0.00011,2]
[334575061,1723255833895,-11273.86824554,0.00011,2]
[334575062,1723255833907,-4473.10212446,0.00011,2]
[334575063,1723255833918,-712.67633939,0.00011,2]
[334575064,1723255833930,-264.63989011,0.00011,2]
[334575065,1723255833941,-599.46000008,0.00011,2]
[334575066,1723255833953,-656.81714486,0.00011,2]
[334575067,1723255833965,-3025.514,0.00011,2]
[334575068,1723255833976,-17999.6803404,0.00011,2]
[334575072,1723255838617,-1241.67838036,0.00011,2]
[334575073,1723255838628,-6178.35106938,0.00011,2]
[334575074,1723255838641,-11719.71120713,0.00011,2]
[334575075,1723255838799,-2510.72,0.00011,2]
[334575076,1723255838813,-5378.01616488,0.00011,2]
[334575077,1723255838825,-7596.73680442,0.00011,2]
[334575178,1723255841562,-536.63384611,0.00011,2]
[334575179,1723255841577,-531.22978467,0.00011,2]
[334575180,1723255841588,-2173.14091211,0.00011,2]
[334575181,1723255841600,-9203.11958714,0.00011,2]
[334575182,1723255841611,-2842.17341417,0.00011,2]
[334575186,1723255843298,-605.0,0.00011,2]
[334575187,1723255843309,-1308.00000413,0.00011,2]
[334575188,1723255843320,-113305.09783421,0.00011,2]
[334575192,1723255844758,-1240.38172753,0.00011,2]
[334575193,1723255844771,-1398.17990794,0.00011,2]
[334575195,1723255846316,-19575.5094038,0.00011,2]
[334575197,1723255846326,-15947.9520762,0.00011,2]
[334575198,1723255846599,-9955.0114,0.00011,2]
[334575248,1723256010773,150.0,0.00025037,120]
[334575250,1723256133519,150.0,0.00027,120]
[334575255,1723256251280,150.0,0.00025987,120]
[334575258,1723256342425,229.61,8.57e-05,2]
[334575260,1723256371303,150.0,0.00026327,120]
[334575261,1723256399091,212.38858633,8.57e-05,2]
[334575262,1723256430652,5413.42,9.65e-05,2]
[334575263,1723256430773,150.0,0.0002571,120]
[334575264,1723256491273,150.0,0.00026464,120]
[334575268,1723256670797,150.0,0.00025796,120]
[334575273,1723256791327,150.0,0.00025039,120]
[334575276,1723256843710,230.8,8.319e-05,2]
[334575281,1723257032334,-250.0,0.00010158,2]
[334575283,1723257032344,-300.0,0.00010236,2]
[334575285,1723257032357,-300.0,0.00010236,2]
[334575287,1723257032367,-4837.24874688,0.00010237,2]
[334575295,1723257032547,-1037.80486349,0.00010237,2]
[334575296,1723257032559,-556.26670477,0.00010237,2]
[334575297,1723257032571,-857.30470671,0.00010237,2]
[334575298,1723257032582,-4282.47497815,0.00010237,2]
[334575299,1723257032591,-708.26,0.0001031,2]
[334575300,1723257032604,-156.83,0.0001033,2]
[334575301,1723257032614,-230.8,0.00010583,2]
[334575302,1723257032623,-954.28798304,0.00010813,2]
[334575303,1723257038330,-45.71201696,0.00010813,2]
[334575305,1723257038340,-325.44,0.00010818,2]
[334575307,1723257038350,-179.64,0.0001082,2]
[334575308,1723257038362,-500.0,0.00010932,2]
[334575309,1723257038372,-250.0,0.00010959,2]
[334575310,1723257038383,-1038.03929644,0.00010988,2]
[334575311,1723257038394,-3448.32020419,0.00010998,2]
[334575312,1723257038469,-2977.32631438,0.00010998,2]
[334575313,1723257038480,-500.0,0.00010998,2]
[334575314,1723257038491,-457.29898728,0.00010998,2]
[334575315,1723257038504,-459.01463883,0.00010998,2]
[334575316,1723257038613,-444.16773872,0.00010998,2]
[334575317,1723257038625,-463.4202856,0.00010998,2]
[334575318,1723257038636,-277.60947535,0.00010998,2]
[334575319,1723257038647,-743.53478048,0.00010998,2]
[334575320,1723257038658,-1308.19168207,0.00010998,2]
[334575321,1723257038667,-2013.66738985,0.00010998,2]
[334575322,1723257038764,-1400.53531935,0.00010998,2]
[334575324,1723257038775,-1311.90526,0.00010998,2]
[334575326,1723257038784,-969.72,0.00011,2]
[334575328,1723257038794,-423.86627879,0.00011,2]
[334575331,1723257038805,-2565.0,0.00011,2]
[334575333,1723257038816,-4865.75855175,0.00011,2]
[334575501,1723257040420,-90473.97180901,0.00011,2]
[334575503,1723257040430,-72185.15034127,0.00011,2]
[334575760,1723257044720,-10520.68965465,0.00011,2]
[334575761,1723257044731,-64488.56442754,0.00011,2]
[334575762,1723257044742,-1014.6249167,0.00011,2]
[334575770,1723257251799,174.56,9.541e-05,2]
[334575771,1723257284452,9554.53,9.528e-05,2]
[334575772,1723257299265,1000.0,9.528e-05,2]
[334575773,1723257404406,250.0,9.494e-05,2]
[334575774,1723257467770,2996.85,9.475e-05,2]
[334575775,1723257515657,245.87,8.219e-05,2]
[334575777,1723257542786,209.35382834,0.00027,120]
[334575781,1723257586099,174.21,9.474e-05,2]
[334575786,1723257646186,213.74,9.48e-05,2]
[334575795,1723257752124,174.56,9.475e-05,2]
[334575799,1723257800626,500.0,0.00024657,120]
[334575800,1723257801021,500.0,0.00025342,120]
[334575801,1723257801293,500.0,0.00026027,120]
[334575802,1723257801598,500.0,0.00026712,120]
[334575804,1723257808864,200.0,9.503e-05,2]
[334575817,1723257989132,233.57,8.219e-05,2]
[334575831,1723258146085,-210.24889066,9.697e-05,2]
[334575832,1723258146127,-300.0,9.697e-05,2]
[334575833,1723258146175,-1990.59057598,9.698e-05,2]
[334575834,1723258146223,-2500.83946664,9.698e-05,2]
[334575835,1723258146271,-2500.83946664,9.698e-05,2]
[334575836,1723258146361,-2500.83946664,9.698e-05,2]
[334575837,1723258146464,-2419.52558678,9.698e-05,2]
[334575853,1723258232649,-189.44,9.932e-05,2]
[334575854,1723258232659,-550.0,0.0001,2]
[334575855,1723258232668,-203.1855718,0.0001,2]
[334575856,1723258232678,-150.0,0.00010137,2]
[334575857,1723258232687,-2033.1,0.00010151,2]
[334575858,1723258232697,-2033.1,0.00010154,2]
[334575859,1723258232707,-2033.1,0.00010156,2]
[334575860,1723258232717,-2033.1,0.00010159,2]
[334575861,1723258232728,-893.76,0.00010159,2]
[334575862,1723258232738,-150.0,0.00010161,2]
[334575863,1723258232748,-2033.1,0.00010162,2]
[334575864,1723258232758,-499.99,0.00010162,2]
[334575865,1723258232767,-4982.2,0.00010162,2]
[334575866,1723258232777,-2033.1,0.00010165,2]
[334575867,1723258232786,-2033.1,0.00010167,2]
[334575868,1723258232796,-1647.53265211,0.0001017,2]
[334575869,1723258232807,-351.7659521,0.0001017,2]
[334575870,1723258232818,-33.80139579,0.0001017,2]
[334575871,1723258232828,-303.73834495,0.00010171,2]
[334575872,1723258232839,-18792.10075588,0.00010171,2]
[334575873,1723258232849,-2033.1,0.00010173,2]
[334575874,1723258232858,-2033.1,0.00010175,2]
[334575875,1723258232868,-2033.1,0.00010178,2]
[334575876,1723258232878,-2033.1,0.00010181,2]
[334575877,1723258232889,-2033.1,0.00010183,2]
[334575878,1723258232898,-2033.1,0.00010186,2]
[334575879,1723258232908,-2033.1,0.00010189,2]
[334575880,1723258232919,-2033.1,0.00010191,2]
[334575881,1723258232929,-2033.1,0.00010194,2]
[334575882,1723258232939,-2033.1,0.00010197,2]
[334575883,1723258232948,-2033.1,0.00010199,2]
[334575884,1723258232958,-2033.1,0.00010202,2]
[334575886,1723258232967,-150.0,0.000103,2]
[334575888,1723258232977,-150.0,0.000103,2]
[334575889,1723258232986,-150.0,0.000103,2]
[334575890,1723258232996,-420.92,0.000103,2]
[334575891,1723258233005,-835.17,0.00010441,2]
[334575892,1723258233015,-233.57,0.00010447,2]
[334575893,1723258233024,-835.17,0.000105,2]
[334575894,1723258233034,-420.92,0.000105,2]
[334575895,1723258233044,-329.77,0.000105,2]
[334575896,1723258233053,-420.92,0.000105,2]
[334575897,1723258233064,-150.0,0.000105,2]
[334575898,1723258233074,-150.0,0.000105,2]
[334575899,1723258233083,-150.0,0.000105,2]
[334575900,1723258233092,-150.0,0.000105,2]
[334575901,1723258233102,-150.0,0.000105,2]
[334575902,1723258233111,-835.17,0.000105,2]
[334575903,1723258233121,-150.0,0.000105,2]
[334575904,1723258233131,-835.17,0.000105,2]
[334575905,1723258233141,-150.0,0.000105,2]
[334575906,1723258233151,-84.55319328,0.000105,2]
[334575907,1723258233163,-65.44680672,0.000105,2]
[334575908,1723258233172,-420.92,0.000105,2]
[334575909,1723258233182,-66.09624513,0.000105,2]
[334575910,1723258233223,-83.90375487,0.000105,2]
[334575911,1723258233233,-150.0,0.000105,2]
[334575912,1723258233242,-150.0,0.000105,2]
[334575913,1723258233252,-150.0,0.000105,2]
[334575914,1723258233261,-419.52230303,0.000105,2]
[334575920,1723258238770,-1.39769697,0.000105,2]
[334575921,1723258238780,-150.0,0.000105,2]
[334575922,1723258238789,-835.17,0.000105,2]
[334575923,1723258238799,-13.43230303,0.000105,2]
[334576047,1723258240661,-295.26,0.00010302,2]
[334576049,1723258240671,-136.56769697,0.000105,2]
[334576051,1723258240680,-143.13779887,0.000105,2]
[334576052,1723258241457,-6.86220113,0.000105,2]
[334576053,1723258241467,-150.0,0.000105,2]
[334576054,1723258241476,-105.56279887,0.000105,2]
[334576056,1723258241491,-729.60720113,0.000105,2]
[334576058,1723258241500,-420.92,0.000105,2]
[334576060,1723258241511,-150.0,0.000105,2]
[334576061,1723258241521,-150.0,0.000105,2]
[334576062,1723258241530,-835.17,0.000105,2]
[334576063,1723258241540,-420.92,0.000105,2]
[334576064,1723258241549,-150.0,0.000105,2]
[334576065,1723258241558,-150.0,0.000105,2]
[334576066,1723258241567,-150.0,0.000105,2]
[334576067,1723258241576,-150.0,0.000105,2]
[334576068,1723258241585,-530.87,0.00010578,2]
[334576069,1723258241594,-674.11,0.00010578,2]
[334576070,1723258241604,-300.0,0.00010578,2]
[334576072,1723258241614,-635.68,0.00010578,2]
[334576074,1723258241624,-530.87,0.00010578,2]
[334576076,1723258241635,-530.87,0.00010578,2]
[334576078,1723258241644,-530.87,0.00010578,2]
[334576079,1723258241657,-530.87,0.00010578,2]
[334576080,1723258241672,-530.87,0.00010578,2]
[334576081,1723258241681,-530.87,0.00010578,2]
[334576082,1723258241690,-530.87,0.00010578,2]
[334576083,1723258241699,-530.87,0.000106,2]
[334576084,1723258241709,-150.0,0.000106,2]
[334576085,1723258241718,-150.0,0.000106,2]
[334576086,1723258241728,-835.17,0.000106,2]
[334576087,1723258241738,-150.27,0.000106,2]
[334576088,1723258241747,-28.93109245,0.000106,2]
[334576089,1723258241759,-391.98890755,0.000106,2]
[334576090,1723258241768,-200.0,0.00010691,2]
[334576091,1723258241778,-1000.0,0.00010719,2]
[334576092,1723258241787,-1494.36259,0.0001089,2]
[334576093,1723258241796,-311.3119,0.000109,2]
[334576094,1723258241806,-5566.487,0.000109,2]
[334576095,1723258241815,-214.7691,0.000109,2]
[334576096,1723258241825,-414.245644,0.000109,2]
[334576097,1723258241835,-365.08093101,0.000109,2]
[334576098,1723258241844,-177.47,0.00010959,2]
[334576099,1723258241853,-887.36,0.00010959,2]
[334576100,1723258241862,-470.6386966,0.00010995,2]
[334576101,1723258241872,-8303.4133628,0.00010995,2]
[334576102,1723258241881,-2570.8133494,0.00010995,2]
[334576103,1723258241891,-163.34208761,0.00010997,2]
[334576104,1723258241906,-583.99242124,0.00010999,3]
[334576105,1723258241915,-20733.10129309,0.00011,2]
[334576106,1723258241926,-28431.19702669,0.00011,2]
[334576107,1723258241935,-38623.53205583,0.00011,2]
[334576108,1723258241946,-1883.1509744,0.00011,2]
[334576109,1723258241957,-302.0,0.00011,2]
[334576119,1723258243678,-101846.85817764,0.00011,2]
[334576120,1723258243688,-582009.35998812,0.00011,2]
[334576136,1723258246752,-835.17,0.000106,2]
[334576138,1723258246762,-150.0,0.000106,2]
[334576140,1723258246772,-148.96449414,0.000106,2]
[334576142,1723258246783,-381.90550586,0.000106,2]
[334576143,1723258246792,-150.0,0.000106,2]
[334576144,1723258246801,-145.98015488,0.00011,2]
[334576145,1723258246813,-850.03340466,0.00011,2]
[334576146,1723258247022,-1880.85390631,0.00011,2]
[334576163,1723258414684,846.84,0.00024657,120]
[334576164,1723258414955,846.84,0.00025342,120]
[334576165,1723258415223,846.84,0.00026027,120]
[334576166,1723258415481,846.84,0.00026712,120]
[334576170,1723258465004,658.58005521,0.00027,120]
[334576172,1723258512866,222.15,8.414e-05,2]
[334576173,1723258632899,22443.92675184,8.414e-05,2]
[334576199,1723259007714,705.7,0.00024657,120]
[334576200,1723259007978,705.7,0.00025342,120]
[334576201,1723259008433,705.7,0.00026027,120]
[334576202,1723259008725,705.7,0.00026712,120]
[334576205,1723259032815,211.04,8.219e-05,2]
[334576231,1723259431789,-250.0,9.672e-05,2]
[334576234,1723259431800,-300.0,9.72e-05,2]
[334576235,1723259431810,-4861.54690309,9.72e-05,2]
[334576237,1723259431819,-880.0,9.72e-05,2]
[334576240,1723259431830,-13708.45309691,9.721e-05,2]
[334576244,1723259431842,-2228.1583063,9.721e-05,2]
[334576246,1723259431854,-3340.02133637,9.721e-05,2]
[334576248,1723259432122,-1153.12071546,9.721e-05,2]
[334576250,1723259432135,-295.62092551,9.721e-05,2]
[334576256,1723259437969,-1423.85912784,9.721e-05,2]
[334576257,1723259438283,-1750.76649161,9.721e-05,2]
[334576260,1723259438295,-174.56,9.892e-05,2]
[334576262,1723259438305,-550.0,0.0001,2]
[334576264,1723259438314,-174.21,0.00010049,2]
[334576265,1723259438324,-408.45,0.00010049,2]
[334576267,1723259438334,-223.12,0.00010062,2]
[334576269,1723259438344,-420.92,0.000101,2]
[334576271,1723259438355,-398.5814979,0.000101,2]
[334576324,1723259439861,-22.3385021,0.000101,2]
[334576325,1723259439874,-311.48042576,0.00010124,2]
[334576326,1723259439886,-188.50957424,0.00010124,2]
[334576327,1723259439895,-420.92,0.00010141,2]
[334576328,1723259439904,-420.92,0.00010141,2]
[334576329,1723259439915,-117.59415599,0.00010141,2]
[334576330,1723259439926,-303.32584401,0.00010141,2]
[334576331,1723259439936,-150.0,0.00010181,2]
[334576332,1723259439945,-295.28,0.0001019,2]
[334576333,1723259439955,-148.2191321,0.00010199,2]
[334576334,1723259439967,-7.08018291,0.00010199,2]
[334576335,1723259439976,-303.90469939,0.00010199,2]
[334576336,1723259439985,-72.58777809,0.00010241,2]
[334576337,1723259439997,-348.33222191,0.00010241,2]
[334576338,1723259440007,-234.29300129,0.00010241,2]
[334576339,1723259440018,-186.62699871,0.00010241,2]
[334576340,1723259440029,-150.0,0.00010378,2]
[334576341,1723259440039,-539.05623099,0.00010441,2]
[334576342,1723259440145,-296.11376901,0.00010441,2]
[334576343,1723259440155,-164.51718083,0.00010482,2]
[334576344,1723259440167,-46.52281917,0.00010482,2]
[334576345,1723259440177,-150.53,0.000105,2]
[334576346,1723259440187,-1270.2445909,0.000105,2]
[334576347,1723259440198,-401.8854091,0.000105,2]
[334576348,1723259440207,-435.37,0.000105,2]
[334576349,1723259440217,-150.0,0.00010578,2]
[334576350,1723259440227,-150.0,0.00010578,2]
[334576351,1723259440236,-528.5,0.00010578,2]
[334576352,1723259440246,-150.0,0.00010578,2]
[334576353,1723259440255,-150.0,0.00010578,2]
[334576354,1723259440265,-420.92,0.00010641,2]
[334576355,1723259440274,-286.0,0.00010693,2]
[334576356,1723259440284,-290.664,0.00010722,2]
[334576357,1723259440293,-489.8814091,0.00010722,2]
[334576358,1723259440305,-264.4956,0.00010722,2]
[334576379,1723259441744,-292.58771873,0.00010722,2]
[334576382,1723259441761,-728.47108323,0.00010722,2]
[334576417,1723259442992,-367.79360796,0.00010722,2]
[334576418,1723259443004,-3696.77058098,0.00010722,2]
[334576419,1723259443012,-3217.61607689,0.00010722,2]
[334576420,1723259443024,-1490.79089986,0.00010722,2]
[334576421,1723259443034,-423.59302325,0.00010722,2]
[334576422,1723259443043,-349.23551929,0.00010722,2]
[334576425,1723259444469,-341.04,0.00010722,2]
[334576426,1723259444479,-419.10287483,0.00010722,2]
[334576427,1723259444490,-332.28537817,0.00010722,2]
[334576429,1723259445893,-420.92,0.000101,2]
[334576430,1723259445903,-79.08,0.00010722,2]
[334576431,1723259445915,-6140.54993197,0.00010722,2]
[334576432,1723259446168,-261.60174887,0.00010722,2]
[334576433,1723259446180,-13828.10454687,0.00010722,2]
[334576434,1723259446190,-1204.0,0.00010722,2]
[334576435,1723259446199,-1672.0,0.00010722,2]
[334576436,1723259446210,-1031.0,0.00010722,2]
[334576437,1723259446219,-1181.88689429,0.0001078,2]
[334576438,1723259446230,-150.0,0.00010848,2]
[334576439,1723259446239,-152.8721221,0.0001087,2]
[334576440,1723259446249,-420.92,0.000109,2]
[334576441,1723259446259,-420.92,0.000109,2]
[334576442,1723259446268,-32.39372545,0.000109,2]
[334576443,1723259446280,-296.17911245,0.000109,2]
[334576444,1723259446290,-414.24564399,0.000109,2]
[334576445,1723259446299,-718.99126728,0.00010935,2]
[334576446,1723259446310,-161.00873272,0.00010935,2]
[334576447,1723259446320,-536.2277919,0.00010995,2]
[334576448,1723259446329,-961.79502114,0.00010995,2]
[334576449,1723259446340,-291.2731696,0.00010995,2]
[334576450,1723259446352,-1219.63798496,0.00010995,2]
[334576451,1723259446361,-264.30201504,0.00010995,2]
[334576452,1723259446373,-434.012,0.00010995,2]
[334576453,1723259446384,-300.04174196,0.00010995,2]
[334576454,1723259446394,-1444.28028841,0.00011,2]
[334576455,1723259446406,-417.95823573,0.00011,2]
[334576456,1723259446417,-333.5134452,0.00011,2]
[334576457,1723259446428,-283.49453764,0.00011,2]
[334576458,1723259446438,-290.05976315,0.00011,2]
[334576459,1723259446450,-1712.25832484,0.00011,2]
[334576464,1723259517828,2826.74392364,0.00027,120]
[334576470,1723259590033,588.09,0.00024657,120]
[334576471,1723259590326,588.09,0.00025342,120]
[334576472,1723259590595,588.09,0.00026027,120]
[334576473,1723259590885,588.09,0.00026712,120]
[334576476,1723259606439,213.53,8.707e-05,2]
[334576479,1723259641862,227.7293364,8.707e-05,2]
[334576487,1723259764870,227.7293364,8.707e-05,2]
[334576516,1723260188541,202.85,8.219e-05,2]
[334576553,1723260633908,-408.23,9.806e-05,2]
[334576554,1723260633918,-1762.27,9.815e-05,2]
[334576555,1723260633928,-493.0,9.861e-05,2]
[334576556,1723260633937,-1000.0,9.908e-05,2]
[334576557,1723260633946,-300.0,9.945e-05,2]
[334576558,1723260633955,-1158.94860203,9.946e-05,2]
[334576559,1723260633966,-679.71,9.946e-05,2]
[334576560,1723260633977,-16834.28139797,9.946e-05,2]
[334576561,1723260633987,-931.61,9.946e-05,2]
[334576562,1723260633996,-444.49066874,9.962e-05,2]
[334576563,1723260634007,-103.27696843,9.962e-05,2]
[334576564,1723260634016,-629.94794314,0.0001,2]
[334576565,1723260634026,-2916.41135858,0.0001,2]
[334576566,1723260634037,-4001.26584935,0.0001,2]
[334576567,1723260634047,-2574.92,0.00010002,2]
[334576568,1723260634056,-236.21,0.00010005,2]
[334576569,1723260634065,-250.0,0.00010061,2]
[334576570,1723260634075,-299.99,0.00010091,2]
[334576571,1723260634084,-272.23,0.00010138,2]
[334576572,1723260634093,-156.61,0.000103,2]